bitfinex/quotes_SOLUSD_20240717
["timestamp","ask_amount","ask_price","bid_price","bid_amount"]
[1721202392302,1.55095858,161.2,161.17,14.83]
[1721202392518,1.55095822,161.21,161.17,14.83]
[1721202393331,16.380958,161.2,161.12,15.8745]
[1721202393496,14.83,161.17,161.12,14.83]
[1721202393701,16.3814686,161.16,161.11,14.83]
[1721202393921,16.3814686,161.16,161.08,15.8745]
[1721202393922,1.5514686,161.16,161.08,15.8745]
[1721202394112,14.83,161.15,161.1,14.83]
[1721202394313,14.83,161.15,161.08,15.8745]
[1721202394314,1.55156354,161.14,161.11,14.83]
[1721202394822,7.75586574,161.18,161.11,14.83]
[1721202395121,1.55136311,161.17,161.13,14.83]
[1721202395503,1.55134727,161.18,161.14,14.83]
[1721202395807,21.0335,161.2,161.14,14.83]
[1721202396126,16.38120373,161.19,161.14,14.83]
[1721202396630,1.55120373,161.19,161.15,14.83]
[1721202397125,7.75500373,161.19,161.15,14.83]
[1721202397298,22.58500373,161.19,161.14,14.83]
[1721202397501,1.55119275,161.18,161.13,14.83]
[1721202397702,16.38119275,161.18,161.13,14.83]
[1721202398016,14.83,161.18,161.13,14.83]
[1721202398219,7.75589293,161.17,161.09,10.0]
[1721202398531,7.75589293,161.17,161.12,14.83]
[1721202398906,7.75589293,161.17,161.1,30.0]
[1721202398907,14.83,161.19,161.14,14.83]
[1721202399107,16.38110469,161.2,161.14,14.83]
[1721202399303,16.38110469,161.2,161.15,14.83]
[1721202399508,16.38110469,161.2,161.16,14.83]
[1721202399509,1.55110469,161.2,161.16,14.83]
[1721202399721,7.75450469,161.2,161.15,14.83]
[1721202400821,6.2038,161.19,161.14,14.83]
[1721202401028,6.2043,161.18,161.14,14.83]
[1721202401330,6.2049,161.17,161.1,30.0]
[1721202401516,6.2049,161.17,161.13,14.83]
[1721202401517,7.75606287,161.17,161.13,14.83]
[1721202401716,6.2043,161.18,161.14,14.83]
[1721202401937,7.75554638,161.18,161.14,14.83]
[1721202402112,6.2043,161.18,161.15,1.24099711]
[1721202402836,6.2043,161.18,161.15,16.07099711]
[1721202403012,6.2043,161.18,161.15,14.83]
[1721202404705,6.2039,161.19,161.16,1.24092483]
[1721202405022,21.0339,161.19,161.14,14.83]
[1721202405227,7.755333,161.18,161.14,14.83]
[1721202405732,7.755333,161.18,161.13,14.83]
[1721202406415,1.551133,161.18,161.13,14.83]
[1721202406627,6.2039,161.19,161.14,16.07086751]
[1721202406812,21.0339,161.19,161.14,14.83]
[1721202407011,6.2053,161.16,161.12,14.83]
[1721202407433,6.2047,161.17,161.13,14.83]
[1721202407745,14.83,161.19,161.14,1.24098931]
[1721202407746,7.75553664,161.18,161.14,1.24098931]
[1721202408038,7.75553664,161.18,161.13,14.83]
[1721202408240,7.75547419,161.18,161.14,14.83]
[1721202408421,6.2043,161.18,161.14,14.83]
[1721202408615,6.2043,161.18,161.15,1.24054678]
[1721202408815,7.75506476,161.19,161.15,1.24054678]
[1721202409033,7.75506476,161.19,161.14,14.83]
[1721202409239,6.2042,161.18,161.13,14.83]
[1721202409639,1.55123891,161.17,161.13,14.83]
[1721202410546,21.0339,161.19,161.13,14.83]
[1721202410844,21.0339,161.19,161.14,14.83]
[1721202411166,14.83,161.2,161.15,14.83]
[1721202411325,1.55111292,161.19,161.15,14.83]
[1721202412144,7.75491292,161.19,161.15,14.83]
[1721202412346,22.58491292,161.19,161.13,14.83]
[1721202412548,21.0338,161.19,161.13,14.83]
[1721202412913,21.0338,161.19,161.1,30.0]
[1721202413117,21.0338,161.19,161.13,14.83]
[1721202414126,6.2042,161.18,161.13,14.83]
[1721202414322,1.55130814,161.17,161.13,14.83]
[1721202414526,1.55130814,161.17,161.12,14.83]
[1721202414736,14.83,161.18,161.13,14.83]
[1721202415139,6.2039,161.19,161.09,10.17]
[1721202415140,21.0339,161.19,161.14,14.83]
[1721202415441,6.2039,161.19,161.14,14.83]
[1721202415647,7.75511571,161.19,161.14,14.83]
[1721202416548,6.2039,161.19,161.14,14.83]
[1721202416747,21.0335,161.2,161.15,14.83]
[1721202416935,7.75501158,161.19,161.15,14.83]
[1721202417140,6.2042,161.18,161.15,14.83]
[1721202417334,6.2042,161.18,161.09,10.17]
[1721202417335,1.55120315,161.17,161.13,14.83]
[1721202418452,14.83,161.19,161.14,14.83]
[1721202418749,16.38114232,161.19,161.14,14.83]
[1721202419346,1.55114232,161.19,161.15,14.83]
[1721202420354,7.75504232,161.19,161.15,14.83]
[1721202420826,6.2035,161.2,161.16,14.83]
[1721202421027,6.2031,161.21,161.16,14.83]
[1721202421227,7.75447774,161.2,161.16,14.83]
[1721202421534,6.2038,161.19,161.14,14.83]
[1721202421926,6.2038,161.19,161.15,14.83]
[1721202422338,6.2034,161.2,161.15,14.83]
[1721202422549,6.2031,161.21,161.16,14.83]
[1721202423036,6.2031,161.21,161.17,1.24078316]
[1721202424232,6.2031,161.21,161.17,16.07078316]
[1721202424433,6.2031,161.21,161.17,14.83]
[1721202424633,1.55100349,161.22,161.18,1.24047631]
[1721202424934,1.55084083,161.22,161.18,16.07047631]
[1721202425151,7.75364083,161.22,161.18,14.83]
[1721202425334,7.75364083,161.22,161.17,14.83]
[1721202425960,6.2031,161.21,161.17,14.83]
[1721202427534,6.2031,161.21,161.18,1.24066579]
[1721202427734,6.2028,161.22,161.18,1.24066579]
[1721202428057,6.2022,161.24,161.2,14.83]
[1721202428237,7.75286239,161.24,161.2,14.83]
[1721202429455,8.5661936,161.27,161.22,14.83]
[1721202429641,6.8863936,161.27,161.23,1.24032229]
[1721202429843,8.43676773,161.27,161.23,1.24032229]
[1721202430050,14.63776773,161.27,161.23,16.07032229]
[1721202430253,14.63776773,161.27,161.23,14.83]
[1721202430446,6.2011,161.26,161.23,14.83]
[1721202431462,1.5503737,161.26,161.23,14.83]
[1721202431667,6.2016,161.25,161.19,15.3637]
[1721202431847,6.202,161.24,161.19,15.3637]
[1721202432166,6.202,161.24,161.2,14.83]
[1721202433062,6.2023,161.23,161.19,15.3637]
[1721202433265,6.2023,161.23,161.19,30.1937]
[1721202433561,14.83,161.24,161.19,30.1937]
[1721202433762,22.58249602,161.24,161.19,30.1937]
[1721202433967,7.75300449,161.23,161.18,14.83]
[1721202434263,22.58300449,161.23,161.17,14.83]
[1721202434474,21.0324,161.23,161.17,14.83]
[1721202435050,14.83,161.23,161.17,14.83]
[1721202435247,14.83,161.23,161.18,14.83]
[1721202435666,21.0319,161.24,161.19,14.83]
[1721202435877,22.58310157,161.23,161.18,14.83]
[1721202436082,6.2028,161.22,161.15,16.599]
[1721202436260,1.55095969,161.21,161.17,14.83]
[1721202436950,1.55093532,161.2,161.15,16.599]
[1721202437451,1.55093532,161.2,161.16,1.24078951]
[1721202437644,1.55105829,161.21,161.13,21.24084663]
[1721202437850,1.55105829,161.21,161.17,14.83]
[1721202438070,1.55094171,161.2,161.17,14.83]
[1721202438479,1.5509824,161.21,161.17,14.83]
[1721202439670,21.0323,161.23,161.17,14.83]
[1721202441088,6.2027,161.22,161.17,14.83]
[1721202441386,1.55090894,161.21,161.17,14.83]
[1721202443488,6.2027,161.22,161.17,14.83]
[1721202443656,1.5508574,161.21,161.17,14.83]
[1721202444377,21.0324,161.23,161.17,14.83]
[1721202444687,16.38085495,161.22,161.17,14.83]
[1721202445686,16.38084946,161.23,161.18,14.83]
[1721202445892,1.55084946,161.23,161.18,14.83]
[1721202446191,22.58314946,161.23,161.18,14.83]
[1721202446561,22.58314946,161.23,161.17,14.83]
[1721202446773,7.75355487,161.22,161.17,14.83]
[1721202447079,21.0331,161.21,161.16,14.83]
[1721202447383,7.75440909,161.2,161.15,14.83]
[1721202447583,1.55100909,161.2,161.15,14.83]
[1721202447959,7.75450909,161.2,161.15,14.83]
[1721202448160,7.75450909,161.2,161.13,20.0]
[1721202448362,7.75450909,161.2,161.16,14.83]
[1721202448674,1.55100909,161.2,161.16,14.83]
[1721202448871,16.38100909,161.2,161.12,20.0]
[1721202449080,6.2046,161.17,161.09,6.3252]
[1721202449385,1.55128089,161.16,161.12,14.83]
[1721202451386,16.38132275,161.18,161.13,14.83]
[1721202451566,1.55130396,161.17,161.13,14.83]
[1721202451984,1.55130396,161.17,161.08,1.24104979]
[1721202452160,1.55130396,161.17,161.12,14.83]
[1721202452591,16.38130396,161.17,161.12,14.83]
[1721202453363,16.38142225,161.18,161.13,16.0711378]
[1721202453563,1.55131709,161.17,161.12,14.83]
[1721202453781,16.38131709,161.17,161.12,14.83]
[1721202454186,16.38131709,161.17,161.09,30.0]
[1721202454187,7.84971709,161.17,161.09,30.0]
[1721202454371,7.84971709,161.17,161.1,14.83]
[1721202454569,7.84971709,161.17,161.09,44.83]
[1721202455002,7.84971709,161.17,161.09,14.83]
[1721202455182,6.2054,161.15,161.07,16.1054]
[1721202455387,1.55174936,161.14,161.09,14.83]
[1721202456383,16.38174936,161.14,161.07,16.1054]
[1721202456696,16.38174936,161.14,161.09,14.83]
[1721202457790,14.83,161.11,161.04,15.2231]
[1721202457971,14.83,161.11,161.05,14.83]
[1721202457972,1.55196658,161.1,161.05,14.83]
[1721202458870,16.38196658,161.1,161.04,15.2231]
[1721202459069,1.55204899,161.09,161.05,14.83]
[1721202459475,1.55204899,161.09,161.04,30.0531]
[1721202460883,1.55204899,161.09,161.0,15.7075]
[1721202461190,14.83,161.08,161.03,14.83]
[1721202461412,7.76034354,161.08,161.01,30.0]
[1721202461695,14.83,161.05,161.01,30.0]
[1721202462007,14.83,161.06,161.01,44.83]
[1721202462175,1.5524691,161.05,161.01,14.83]
[1721202462375,0.17,161.09,161.03,14.83]
[1721202462676,16.38223671,161.09,161.03,14.83]
[1721202463213,22.59003671,161.09,161.03,14.83]
[1721202463393,14.83,161.08,161.03,14.83]
[1721202463724,1.55223963,161.07,161.03,14.83]
[1721202464074,16.38224031,161.08,161.03,14.83]
[1721202464398,1.55223487,161.07,161.04,14.83]
[1721202464702,14.83,161.09,161.01,1.24179794]
[1721202464703,1.55224743,161.09,161.01,1.24179794]
[1721202465083,1.55224743,161.09,161.05,14.83]
[1721202466306,7.76004743,161.09,161.04,14.83]
[1721202466607,22.59004743,161.09,161.04,14.83]
[1721202467296,7.76004743,161.09,161.04,14.83]
[1721202467804,1.55224743,161.09,161.04,14.83]
[1721202468479,1.55224743,161.09,161.05,14.83]
[1721202468886,1.55210204,161.11,161.06,16.07168163]
[1721202469109,16.38183276,161.15,161.06,17.16258163]
[1721202469302,7.75655157,161.16,161.11,14.83]
[1721202469609,28.81799168,161.17,161.12,15.41822047]
[1721202469781,28.81799168,161.17,161.12,14.83]
[1721202470305,6.205,161.16,161.12,14.83]
[1721202471107,6.2042,161.19,161.15,14.83]
[1721202471495,6.2042,161.19,161.16,16.07088173]
[1721202471696,6.2043,161.18,161.16,14.83]
[1721202472007,14.83,161.19,161.14,14.83]
[1721202472202,1.55124486,161.18,161.14,14.83]
[1721202472587,6.2047,161.17,161.14,14.83]
[1721202474094,7.75564486,161.18,161.14,14.83]
[1721202474302,1.55128129,161.17,161.14,14.83]
[1721202474499,1.55128129,161.17,161.13,14.83]
[1721202476111,1.55128151,161.18,161.14,16.07102521]
[1721202476290,1.55128151,161.18,161.14,14.83]
[1721202477293,7.75548151,161.18,161.14,14.83]
[1721202477982,1.55127827,161.17,161.14,14.83]
[1721202478205,7.75548166,161.18,161.14,14.83]
[1721202479389,1.55128203,161.17,161.14,14.83]
[1721202479894,1.55128203,161.18,161.14,14.83]
[1721202480300,1.55128084,161.17,161.14,14.83]
[1721202480686,7.75608084,161.17,161.08,6.1562]
[1721202480892,22.58608084,161.17,161.12,14.83]
[1721202481213,21.0342,161.18,161.13,16.07059537]
[1721202481410,14.83,161.18,161.13,14.83]
[1721202481614,1.55124996,161.19,161.14,16.07099996]
[1721202481816,1.55124996,161.19,161.15,14.83]
[1721202481983,7.75534996,161.19,161.15,14.83]
[1721202482182,14.83,161.18,161.13,14.83]
[1721202482411,1.55124996,161.19,161.13,14.83]
[1721202482412,21.0339,161.19,161.13,14.83]
[1721202482624,6.1064,161.21,161.17,14.83]
[1721202482788,1.55101393,161.21,161.18,14.83]
[1721202483503,1.55101393,161.21,161.17,14.83]
[1721202483697,1.55100211,161.2,161.17,14.83]
[1721202485017,7.75410209,161.21,161.17,14.83]
[1721202485192,1.55099249,161.2,161.17,14.83]
[1721202485798,7.75409304,161.21,161.17,14.83]
[1721202486315,7.75369157,161.22,161.18,14.83]
[1721202486518,6.2023,161.23,161.19,14.83]
[1721202486730,1.55083564,161.22,161.19,14.83]
[1721202486897,7.75363564,161.22,161.18,14.83]
[1721202487299,7.75363564,161.22,161.19,14.83]
[1721202487622,6.2028,161.22,161.19,14.83]
[1721202488026,6.2028,161.22,161.18,14.83]
[1721202488226,6.2028,161.22,161.19,14.83]
[1721202488727,6.2028,161.22,161.18,14.83]
[1721202489417,6.2028,161.22,161.19,14.83]
[1721202489923,7.75393829,161.21,161.18,14.83]
[1721202490126,6.2031,161.21,161.18,14.83]
[1721202490329,6.2031,161.21,161.17,14.83]
[1721202490529,1.55084087,161.2,161.13,15.0154]
[1721202490825,16.38084087,161.2,161.15,14.83]
[1721202491026,6.2043,161.18,161.14,20.0]
[1721202491239,7.75558725,161.18,161.14,14.83]
[1721202491599,7.75558725,161.18,161.13,14.83]
[1721202491996,1.55121561,161.17,161.13,14.83]
[1721202492297,1.55121561,161.17,161.09,45.8674]
[1721202492298,16.38121561,161.17,161.09,45.8674]
[1721202492535,6.205,161.16,161.11,14.83]
[1721202492719,1.5514962,161.15,161.11,14.83]
[1721202493226,1.5514962,161.15,161.12,14.83]
[1721202493400,1.55153034,161.16,161.12,14.83]
[1721202494730,1.55153034,161.16,161.13,14.83]
[1721202495805,7.75561125,161.18,161.14,1.24095573]
[1721202496009,1.55126631,161.17,161.13,14.83]
[1721202496233,1.55126631,161.17,161.1,1.24095573]
[1721202496402,7.75586631,161.17,161.13,14.83]
[1721202497034,1.55126631,161.17,161.13,14.83]
[1721202497210,1.55132644,161.17,161.13,14.83]
[1721202497827,1.55130844,161.17,161.13,14.83]
[1721202498237,7.75590844,161.17,161.13,14.83]
[1721202498615,7.75590844,161.17,161.09,15.8674]
[1721202498819,7.75590844,161.17,161.13,14.83]
[1721202499222,6.2051,161.16,161.13,14.83]
[1721202499449,1.55145485,161.15,161.12,14.83]
[1721202499745,7.75685485,161.15,161.12,14.83]
[1721202499952,6.2054,161.15,161.09,15.8674]
[1721202500156,6.2054,161.15,161.12,14.83]
[1721202500366,6.205,161.16,161.11,14.83]
[1721202500643,6.205,161.16,161.12,16.07116063]
[1721202500852,1.5514745,161.17,161.12,14.83]
[1721202501159,7.7562745,161.17,161.12,14.83]
[1721202501335,7.7562745,161.17,161.13,14.83]
[1721202501653,1.5514745,161.17,161.12,14.83]
[1721202501945,6.205,161.16,161.12,14.83]
[1721202502131,1.55145582,161.15,161.12,14.83]
[1721202502333,7.75645582,161.16,161.12,14.83]
[1721202503336,1.55145777,161.15,161.12,14.83]
[1721202504062,7.75685777,161.15,161.12,14.83]
[1721202504233,7.75730616,161.14,161.11,14.83]
[1721202504441,7.75730616,161.14,161.05,18.38409436]
[1721202504442,22.58730616,161.14,161.05,16.6637]
[1721202504745,1.55171958,161.13,161.09,14.83]
[1721202506471,16.38171958,161.13,161.08,14.83]
[1721202506638,14.83,161.13,161.08,14.83]
[1721202508368,14.83,161.14,161.09,14.83]
[1721202508572,1.55179768,161.13,161.09,14.83]
[1721202508858,16.38179768,161.13,161.08,14.83]
[1721202509576,14.83,161.13,161.08,14.83]
[1721202512267,14.83,161.14,161.09,14.83]
[1721202512441,14.83,161.16,161.1,16.0713495]
[1721202512646,14.83,161.15,161.1,14.83]
[1721202512847,1.55163738,161.14,161.09,14.83]
[1721202513253,0.34,161.17,161.13,14.83]
[1721202513458,1.55163716,161.18,161.13,14.83]
[1721202513647,1.55133967,161.17,161.14,14.83]
[1721202514169,1.55133967,161.17,161.13,14.83]
[1721202514478,1.55133967,161.17,161.12,14.83]
[1721202515165,1.55133967,161.17,161.13,16.0710662]
[1721202515471,1.55133967,161.17,161.13,14.83]
[1721202515675,1.55133967,161.17,161.14,14.83]
[1721202515852,1.55132353,161.18,161.14,14.83]
[1721202516058,1.55132424,161.17,161.14,14.83]
[1721202516469,1.55132424,161.17,161.13,14.83]
[1721202516951,1.55122059,161.21,161.15,14.83]
[1721202517150,1.55122059,161.21,161.15,16.07090668]
[1721202517151,1.55113335,161.2,161.15,16.07090668]
[1721202517366,1.55113335,161.2,161.15,14.83]
[1721202517562,21.0338,161.19,161.14,14.83]
[1721202517773,1.55121324,161.18,161.11,15.259]
[1721202517958,1.55121324,161.18,161.13,14.83]
[1721202518667,21.0338,161.19,161.14,14.83]
[1721202518849,1.55116401,161.18,161.14,14.83]
[1721202519544,1.55116401,161.18,161.13,14.83]
[1721202519941,0.34,161.22,161.15,14.83]
[1721202519942,21.0335,161.2,161.15,14.83]
[1721202520146,14.83,161.21,161.16,14.83]
[1721202520377,1.55104904,161.2,161.16,14.83]
[1721202521358,16.38104904,161.2,161.11,15.259]
[1721202521683,16.3811683,161.19,161.14,14.83]
[1721202521979,1.55119516,161.18,161.14,14.83]
[1721202523979,1.55119107,161.19,161.14,14.83]
[1721202524354,1.55119107,161.19,161.15,14.83]
[1721202526560,6.2043,161.18,161.14,14.83]
[1721202526760,1.5511932,161.18,161.14,14.83]
[1721202527282,1.5511932,161.18,161.15,14.83]
[1721202527861,1.5511932,161.18,161.14,14.83]
[1721202528280,1.5511933,161.17,161.11,15.259]
[1721202528580,1.5511933,161.17,161.13,14.83]
[1721202529258,1.55127082,161.18,161.14,14.83]
[1721202529462,1.55128307,161.17,161.13,14.83]
[1721202529861,1.55128307,161.17,161.14,14.83]
[1721202530162,1.55128307,161.17,161.11,15.259]
[1721202530367,7.75598307,161.17,161.13,14.83]
[1721202530757,1.55128307,161.17,161.13,14.83]
[1721202531559,7.75588307,161.17,161.13,14.83]
[1721202531791,22.58588307,161.17,161.12,14.83]
[1721202531959,1.55146474,161.16,161.12,14.83]
[1721202532860,6.3754,161.15,161.05,23.1881]
[1721202533165,1.55176122,161.14,161.1,14.83]
[1721202535369,1.55175815,161.15,161.11,14.83]
[1721202537879,1.55153717,161.16,161.12,14.83]
[1721202538483,1.5514901,161.17,161.13,14.83]
[1721202539182,1.5513707,161.2,161.11,25.6552]
[1721202539360,6.4689,161.21,161.17,14.83]
[1721202539361,1.55117813,161.21,161.17,14.83]
[1721202540005,1.55094559,161.2,161.17,14.83]
[1721202540298,1.55094559,161.2,161.16,14.83]
[1721202540461,1.55094559,161.2,161.15,14.83]
[1721202540895,16.38094559,161.2,161.15,14.83]
[1721202541487,1.55094559,161.2,161.16,14.83]
[1721202541695,1.55102737,161.2,161.17,14.83]
[1721202542373,14.83,161.23,161.17,14.83]
[1721202542585,1.55088099,161.22,161.18,14.83]
[1721202542793,1.55088099,161.22,161.17,14.83]
[1721202546083,16.38088099,161.22,161.17,14.83]
[1721202548900,1.55088099,161.22,161.17,14.83]
[1721202549393,16.38088099,161.22,161.17,14.83]
[1721202552891,1.55088099,161.22,161.18,14.83]
[1721202553306,21.0323,161.23,161.2,14.83]
[1721202553307,1.55092667,161.23,161.2,14.83]
[1721202553481,1.55077262,161.24,161.19,14.83]
[1721202553670,1.55059319,161.25,161.22,14.83]
[1721202553876,1.55059319,161.25,161.23,14.83]
[1721202554099,23.42153623,161.27,161.22,14.83]
[1721202554299,1.55054474,161.26,161.22,14.83]
[1721202554687,1.55054474,161.26,161.21,14.83]
[1721202555383,7.75164474,161.26,161.21,14.83]
[1721202556175,22.58164474,161.26,161.21,14.83]
[1721202558517,1.55054474,161.26,161.21,14.83]
[1721202559013,16.38054474,161.26,161.21,14.83]
[1721202559378,1.55054474,161.26,161.21,14.83]
[1721202559882,16.38054474,161.26,161.21,14.83]
[1721202561516,1.55054474,161.26,161.21,14.83]
[1721202562376,16.38054474,161.26,161.21,14.83]
[1721202563582,1.55054474,161.26,161.21,14.83]
[1721202564091,1.55054474,161.26,161.22,14.83]
[1721202565209,1.55054474,161.26,161.23,14.83]
[1721202567301,1.55054474,161.26,161.22,14.83]
[1721202567796,2.39069616,161.27,161.22,14.83]
[1721202568004,2.39069616,161.27,161.23,14.83]
[1721202568419,2.39069616,161.27,161.22,14.83]
[1721202568619,2.39069616,161.27,161.23,14.83]
[1721202571927,7.75173067,161.26,161.17,15.6926]
[1721202572223,7.75173067,161.26,161.21,14.83]
[1721202572393,14.83,161.24,161.18,30.0]
[1721202572589,1.55072531,161.23,161.19,34.83]
[1721202573295,1.55072531,161.23,161.19,14.83]
[1721202574519,1.55069641,161.24,161.19,14.83]
[1721202574817,16.38069641,161.24,161.19,14.83]
[1721202575008,1.55069745,161.23,161.19,14.83]
[1721202575515,1.55069559,161.24,161.19,14.83]
[1721202575718,1.55069559,161.24,161.2,14.83]
[1721202576217,1.55065917,161.25,161.2,14.83]
[1721202577118,0.8401936,161.27,161.22,14.83]
[1721202577423,0.8401936,161.27,161.23,14.83]
[1721202581915,0.8401936,161.27,161.24,14.83]
[1721202582429,2.39052362,161.27,161.19,10.0]
[1721202582600,2.39052362,161.27,161.23,14.83]
[1721202583622,0.8401936,161.27,161.23,14.83]
[1721202584224,0.8401936,161.27,161.24,16.07025656]
[1721202584425,0.8401936,161.27,161.24,14.83]
[1721202584927,0.8401936,161.27,161.23,14.83]
[1721202585523,0.8401936,161.27,161.24,14.83]
[1721202586822,0.8401936,161.27,161.25,14.83]
[1721202587034,0.8401936,161.27,161.24,14.83]
[1721202590331,0.8401936,161.27,161.26,14.83]
[1721202593407,0.8401936,161.27,161.25,14.83]
[1721202594411,0.8401936,161.27,161.22,15.937]
[1721202594611,0.8401936,161.27,161.23,14.83]
[1721202595123,22.58148924,161.26,161.17,10.0]
[1721202595313,14.83,161.25,161.2,14.83]
[1721202595517,16.38028924,161.26,161.21,14.83]
[1721202595715,14.83,161.25,161.2,14.83]
[1721202596039,1.55055091,161.24,161.2,14.83]
[1721202596411,1.55055571,161.24,161.2,14.83]
[1721202596746,16.38069656,161.23,161.18,14.83]
[1721202596910,1.55069656,161.23,161.19,14.83]
[1721202597226,1.55069656,161.23,161.18,14.83]
[1721202597405,16.38069656,161.23,161.18,14.83]
[1721202599130,16.38074334,161.24,161.18,14.83]
[1721202599504,1.55072865,161.23,161.19,14.83]
[1721202599721,6.2016,161.25,161.19,14.83]
[1721202599722,1.55073387,161.24,161.19,14.83]
[1721202599939,16.38073387,161.24,161.19,14.83]
[1721202600625,1.55070863,161.23,161.19,14.83]
[1721202600807,22.58226154,161.25,161.2,14.83]
[1721202601416,14.83,161.24,161.19,14.83]
[1721202601616,1.55067973,161.23,161.18,14.83]
[1721202603433,1.5506798,161.23,161.19,14.83]
[1721202605620,1.55066758,161.24,161.2,14.83]
[1721202607127,7.75256758,161.24,161.2,14.83]
[1721202607714,22.58256758,161.24,161.19,14.83]
[1721202608232,7.75295043,161.23,161.19,14.83]
[1721202608438,16.38065043,161.23,161.16,15.3337]
[1721202608746,16.38065043,161.23,161.17,34.83]
[1721202608943,22.58305043,161.23,161.17,34.83]
[1721202609113,21.0324,161.23,161.17,34.83]
[1721202609614,21.0324,161.23,161.18,14.83]
[1721202609615,14.83,161.23,161.18,14.83]
[1721202609913,1.55076476,161.23,161.19,14.83]
[1721202610339,22.58276256,161.24,161.19,14.83]
[1721202610628,22.58229335,161.25,161.2,14.83]
[1721202612306,0.8401936,161.27,161.21,1.24050983]
[1721202612531,0.8401936,161.27,161.21,10.0]
[1721202612715,0.8401936,161.27,161.25,14.83]
[1721202613721,0.8401936,161.27,161.22,60.6965]
[1721202613929,0.8401936,161.27,161.23,50.0]
[1721202614114,0.8401936,161.27,161.25,14.83]
[1721202614929,0.8401936,161.27,161.26,14.83]
[1721202618134,0.8401936,161.27,161.26,44.83]
[1721202619444,0.59430486,161.27,161.26,44.83]
[1721202619851,0.59430486,161.27,161.26,111.06974752]
[1721202621546,0.59430486,161.27,161.26,109.83]
[1721202622139,0.59430486,161.27,161.26,126.3973]
[1721202625064,0.59430486,161.27,161.26,127.63561253]
[1721202625275,0.59430486,161.27,161.26,142.46561253]
[1721202625571,0.59430486,161.27,161.26,126.7373]
[1721202625875,0.59430486,161.27,161.26,111.5673]
[1721202626077,0.59430486,161.27,161.26,126.3973]
[1721202626373,0.59430486,161.27,161.26,81.3973]
[1721202629269,0.59430486,161.27,161.26,64.83]
[1721202630247,0.59430486,161.27,161.26,34.83]
[1721202633259,0.59430486,161.27,161.26,64.83]
[1721202634944,0.59430486,161.27,161.26,34.83]
[1721202638047,0.59430486,161.27,161.26,64.83]
[1721202638253,0.59430486,161.27,161.26,20.0]
[1721202639183,0.59430486,161.27,161.26,34.83]
[1721202640764,0.59430486,161.27,161.26,64.83]
[1721202640960,0.59430486,161.27,161.26,74.83]
[1721202641170,0.59430486,161.27,161.26,119.83]
[1721202641465,0.59430486,161.27,161.26,135.89713314]
[1721202641665,0.59430486,161.27,161.26,152.62353314]
[1721202642253,0.59430486,161.27,161.26,121.7264]
[1721202642455,0.59430486,161.27,161.26,136.5564]
[1721202643062,0.59430486,161.27,161.26,126.5564]
[1721202643576,0.59430486,161.27,161.26,126.3864]
[1721202643757,0.59430486,161.27,161.26,126.2164]
[1721202645583,0.59430486,161.27,161.26,136.5564]
[1721202646757,0.59430486,161.27,161.26,126.2164]
[1721202647052,0.59430486,161.27,161.26,127.45616961]
[1721202647872,0.59430486,161.27,161.26,137.45616961]
[1721202648995,0.59430486,161.27,161.26,136.2164]
[1721202649294,0.59430486,161.27,161.26,136.5564]
[1721202650382,0.59430486,161.27,161.26,126.2164]
[1721202650775,0.59430486,161.27,161.26,126.5564]
[1721202651584,0.59430486,161.27,161.26,141.3864]